[Event "GrandPrix_29.05"]
[Site "Chess.com"]
[Date "2020.05.29"]
[Round "3"]
[White "Bosiocic"]
[Black "GMMarcinDziuba"]
[Result "1-0"]
[WhiteElo "2729"]
[BlackElo "2493"]
[TimeControl "600+2"]
[EndTime "10:28:01 PDT"]
[Termination "Bosiocic won by resignation"]

1. d4 {[%clk 0:10:01.9]} 1... Nf6 {[%clk 0:09:55]} 2. Bg5 {[%clk 0:10:02.4]}
2... d5 {[%clk 0:09:50.3]} 3. e3 {[%clk 0:10:03.2]} 3... e6 {[%clk 0:09:46.4]}
4. c3 {[%clk 0:10:02]} 4... c5 {[%clk 0:09:42.8]} 5. Nd2 {[%clk 0:10:01.9]} 5...
Qb6 {[%clk 0:09:34]} 6. Qb3 {[%clk 0:09:53.4]} 6... Nc6 {[%clk 0:09:11.4]} 7.
Ngf3 {[%clk 0:09:46.8]} 7... h6 {[%clk 0:08:53.2]} 8. Bf4 {[%clk 0:09:36.5]}
8... c4 {[%clk 0:08:43.5]} 9. Qc2 {[%clk 0:09:35.7]} 9... g5 {[%clk 0:08:30.4]}
10. Bg3 {[%clk 0:09:29.9]} 10... Nh5 {[%clk 0:08:31.2]} 11. Be5 {[%clk
0:09:12.7]} 11... Nxe5 {[%clk 0:08:25.2]} 12. Nxe5 {[%clk 0:09:13.3]} 12... Bg7
{[%clk 0:08:09.1]} 13. Be2 {[%clk 0:09:09.6]} 13... Nf6 {[%clk 0:08:09.2]} 14.
b3 {[%clk 0:09:05.7]} 14... cxb3 {[%clk 0:08:04.4]} 15. axb3 {[%clk 0:09:06.2]}
15... Nd7 {[%clk 0:08:01.7]} 16. Nd3 {[%clk 0:08:50.8]} 16... Qc7 {[%clk
0:07:39.1]} 17. O-O {[%clk 0:08:47]} 17... b6 {[%clk 0:07:38.6]} 18. Ra3 {[%clk
0:07:58.4]} 18... O-O {[%clk 0:07:29.3]} 19. Rfa1 {[%clk 0:07:58]} 19... a5
{[%clk 0:07:13.1]} 20. b4 {[%clk 0:07:54.8]} 20... Bb7 {[%clk 0:06:24.6]} 21.
Nb3 {[%clk 0:07:18.8]} 21... axb4 {[%clk 0:06:19.6]} 22. Rxa8 {[%clk 0:07:16.3]}
22... Rxa8 {[%clk 0:06:18.9]} 23. Rxa8+ {[%clk 0:07:14.5]} 23... Bxa8 {[%clk
0:06:20.8]} 24. Nxb4 {[%clk 0:07:13.7]} 24... Bf8 {[%clk 0:06:13.6]} 25. Nd3
{[%clk 0:06:39.3]} 25... Qa7 {[%clk 0:06:09.8]} 26. Nb4 {[%clk 0:05:42.6]} 26...
Qa3 {[%clk 0:06:03.6]} 27. Bb5 {[%clk 0:05:33]} 27... Nf6 {[%clk 0:05:37.4]} 28.
Nd3 {[%clk 0:05:25.9]} 28... Ne4 {[%clk 0:05:31.9]} 29. Ne5 {[%clk 0:05:20.6]}
29... Nd6 {[%clk 0:05:02.4]} 30. Bd3 {[%clk 0:05:12.5]} 30... Bb7 {[%clk
0:04:51.7]} 31. h4 {[%clk 0:04:58]} 31... Ba6 {[%clk 0:04:41]} 32. Bxa6 {[%clk
0:04:26.7]} 32... Qxa6 {[%clk 0:04:40.1]} 33. hxg5 {[%clk 0:04:27.4]} 33... hxg5
{[%clk 0:04:40.9]} 34. Nd2 {[%clk 0:04:09.4]} 34... Qe2 {[%clk 0:04:34.2]} 35.
Qd3 {[%clk 0:04:00.8]} 35... Qe1+ {[%clk 0:04:25.1]} 36. Nf1 {[%clk 0:03:55.7]}
36... Ne4 {[%clk 0:04:24.7]} 37. Qc2 {[%clk 0:03:55.4]} 37... Nxc3 {[%clk
0:04:12.6]} 38. g4 {[%clk 0:03:35.5]} 38... Ne4 {[%clk 0:03:45.8]} 39. Kg2
{[%clk 0:03:34.5]} 39... b5 {[%clk 0:03:05.5]} 40. Qa2 {[%clk 0:02:15.7]} 40...
b4 {[%clk 0:02:57.4]} 41. Nd3 {[%clk 0:01:34.4]} 41... Qd1 {[%clk 0:02:52.6]}
42. Ne5 {[%clk 0:01:34.9]} 42... b3 {[%clk 0:02:28.2]} 43. Qa7 {[%clk 0:01:34]}
43... Nd6 {[%clk 0:02:28.4]} 44. Qb8 {[%clk 0:01:32.7]} 44... Kg7 {[%clk
0:02:22.7]} 45. Ng3 {[%clk 0:01:31.7]} 45... Be7 {[%clk 0:01:49.3]} 46. Nc6
{[%clk 0:00:28.7]} 46... Qxg4 {[%clk 0:00:22.5]} 47. f3 {[%clk 0:00:19.2]} 47...
Qh4 {[%clk 0:00:18.8]} 48. Nxe7 {[%clk 0:00:18.8]} 48... Nc4 {[%clk 0:00:15.1]}
49. Nef5+ {[%clk 0:00:16.6]} 49... exf5 {[%clk 0:00:15.7]} 50. Nxf5+ {[%clk
0:00:17.8]} 50... Kf6 {[%clk 0:00:16.9]} 51. Nxh4 {[%clk 0:00:18.7]} 51... gxh4
{[%clk 0:00:17.8]} 52. Qxb3 {[%clk 0:00:17.1]} 1-0

[Event "GrandPrix_29.05"]
[Site "Chess.com"]
[Date "2020.05.29"]
[Round "3"]
[White "Sergey_Krivenko"]
[Black "larrylarsen"]
[Result "1-0"]
[WhiteElo "2069"]
[BlackElo "1186"]
[TimeControl "600+2"]
[EndTime "10:28:02 PDT"]
[Termination "Sergey_Krivenko won on time"]

1. d4 {[%clk 0:10:01.9]} 1... Nf6 {[%clk 0:09:54.4]} 2. Nf3 {[%clk 0:10:00.6]}
2... g6 {[%clk 0:09:53.2]} 3. Bg5 {[%clk 0:09:59.9]} 3... Bg7 {[%clk 0:09:52.3]}
4. Nbd2 {[%clk 0:09:59.6]} 4... d6 {[%clk 0:09:47.5]} 5. c3 {[%clk 0:09:54.2]}
5... O-O {[%clk 0:09:45.2]} 6. e4 {[%clk 0:09:51]} 6... c6 {[%clk 0:09:14.4]} 7.
Bd3 {[%clk 0:09:42.1]} 7... e5 {[%clk 0:09:02.2]} 8. O-O {[%clk 0:09:08.4]} 8...
Nbd7 {[%clk 0:08:55.1]} 9. Re1 {[%clk 0:08:56]} 9... Qc7 {[%clk 0:08:45.2]} 10.
h3 {[%clk 0:08:49.8]} 10... Re8 {[%clk 0:08:44.3]} 11. a4 {[%clk 0:08:40.4]}
11... a5 {[%clk 0:08:29.9]} 12. Qb3 {[%clk 0:08:04.9]} 12... Nf8 {[%clk
0:08:25.5]} 13. dxe5 {[%clk 0:07:43.3]} 13... dxe5 {[%clk 0:08:22.9]} 14. Be3
{[%clk 0:07:37]} 14... N6d7 {[%clk 0:07:52.3]} 15. Ng5 {[%clk 0:06:24.4]} 15...
Ne6 {[%clk 0:07:40.1]} 16. Nxe6 {[%clk 0:06:20.8]} 16... Rxe6 {[%clk 0:07:24.5]}
17. Bc4 {[%clk 0:06:08.9]} 17... Re7 {[%clk 0:07:23.7]} 18. Nf3 {[%clk
0:06:03.2]} 18... h6 {[%clk 0:06:59.5]} 19. Nh4 {[%clk 0:05:37]} 19... Nf8
{[%clk 0:06:47.9]} 20. Bb6 {[%clk 0:05:00.1]} 20... Qd6 {[%clk 0:06:07]} 21.
Rad1 {[%clk 0:04:33.1]} 21... Qf6 {[%clk 0:06:05.9]} 22. Nf3 {[%clk 0:03:10.3]}
22... Ne6 {[%clk 0:04:21.5]} 23. Bd8 {[%clk 0:02:22.1]} 23... Nf4 {[%clk
0:02:10.1]} 24. Bxe7 {[%clk 0:02:12.3]} 24... Qxe7 {[%clk 0:02:09.9]} 25. Qb6
{[%clk 0:02:02.2]} 25... Bf6 {[%clk 0:01:29]} 26. Rd2 {[%clk 0:01:41.9]} 26...
Kg7 {[%clk 0:01:21.4]} 27. Red1 {[%clk 0:01:38.2]} 27... Bg5 {[%clk 0:01:08.1]}
28. Rd6 {[%clk 0:01:20.4]} 28... h5 {[%clk 0:00:39.1]} 29. Qc5 {[%clk
0:01:14.2]} 29... Bf6 {[%clk 0:00:17.4]} 30. Kh2 {[%clk 0:00:49]} 30... g5
{[%clk 0:00:17.9]} 31. Qb6 {[%clk 0:00:32.7]} 31... g4 {[%clk 0:00:17.7]} 32.
Ng1 {[%clk 0:00:33.1]} 32... gxh3 {[%clk 0:00:14.9]} 33. g3 {[%clk 0:00:34.1]}
33... Bg4 {[%clk 0:00:11]} 34. gxf4 {[%clk 0:00:31]} 34... exf4 {[%clk 0:00:11]}
35. f3 {[%clk 0:00:28.4]} 35... Be5 {[%clk 0:00:09.8]} 36. Rd8 {[%clk
0:00:25.9]} 36... Rxd8 {[%clk 0:00:07.7]} 37. Qxd8 {[%clk 0:00:26.1]} 37... Qc5
{[%clk 0:00:08]} 38. Qg5+ {[%clk 0:00:18]} 38... Kh7 {[%clk 0:00:08.5]} 39. Nxh3
{[%clk 0:00:16]} 39... Qe3 {[%clk 0:00:04.9]} 40. Qxe5 {[%clk 0:00:13.3]} 40...
Qxf3 {[%clk 0:00:04.2]} 41. Ng5+ {[%clk 0:00:08.9]} 41... Kg6 {[%clk 0:00:03.5]}
42. Nxf3 {[%clk 0:00:10]} 42... Bxf3 {[%clk 0:00:03.4]} 43. Qf5+ {[%clk
0:00:10.7]} 43... Kh6 {[%clk 0:00:03.7]} 44. Rg1 {[%clk 0:00:10.2]} 44... Bg4
{[%clk 0:00:04.1]} 45. Qxf4+ {[%clk 0:00:11.3]} 45... Kh7 {[%clk 0:00:04.1]} 46.
Rxg4 {[%clk 0:00:13.2]} 46... hxg4 {[%clk 0:00:03.6]} 47. Qxg4 {[%clk
0:00:15.1]} 1-0

[Event "GrandPrix_29.05"]
[Site "Chess.com"]
[Date "2020.05.29"]
[Round "3"]
[White "Onischuk_V"]
[Black "AlexVanGog"]
[Result "1/2-1/2"]
[WhiteElo "2321"]
[BlackElo "2221"]
[TimeControl "600+2"]
[EndTime "10:28:04 PDT"]
[Termination "Game drawn by repetition"]

1. e4 {[%clk 0:09:43.4]} 1... c5 {[%clk 0:09:58.7]} 2. Nf3 {[%clk 0:09:44]} 2...
d6 {[%clk 0:09:59.9]} 3. c3 {[%clk 0:09:27.3]} 3... Nf6 {[%clk 0:09:59]} 4. Be2
{[%clk 0:09:27.8]} 4... g6 {[%clk 0:09:59.6]} 5. O-O {[%clk 0:09:27.7]} 5... Bg7
{[%clk 0:10:00.7]} 6. Bb5+ {[%clk 0:09:09.6]} 6... Bd7 {[%clk 0:09:50.5]} 7.
Bxd7+ {[%clk 0:09:09.9]} 7... Qxd7 {[%clk 0:09:48.2]} 8. Re1 {[%clk 0:09:10]}
8... O-O {[%clk 0:09:47.4]} 9. d4 {[%clk 0:09:10.9]} 9... cxd4 {[%clk 0:09:42]}
10. cxd4 {[%clk 0:09:11.8]} 10... Na6 {[%clk 0:08:48.5]} 11. Nc3 {[%clk
0:09:10.1]} 11... Rac8 {[%clk 0:08:49]} 12. Bg5 {[%clk 0:08:56.3]} 12... h6
{[%clk 0:08:48.8]} 13. Be3 {[%clk 0:08:57]} 13... Nc7 {[%clk 0:08:31.8]} 14. Qb3
{[%clk 0:08:48.6]} 14... Ne6 {[%clk 0:08:26.8]} 15. h3 {[%clk 0:08:44.4]} 15...
Rfd8 {[%clk 0:07:58.6]} 16. Rad1 {[%clk 0:08:36.4]} 16... d5 {[%clk 0:07:22.5]}
17. Ne5 {[%clk 0:08:35.2]} 17... Qd6 {[%clk 0:06:52.7]} 18. Qxb7 {[%clk
0:08:31]} 18... Nxe4 {[%clk 0:06:45.1]} 19. Nxe4 {[%clk 0:08:28.2]} 19... dxe4
{[%clk 0:06:47]} 20. Qxe4 {[%clk 0:08:17.7]} 20... Qd5 {[%clk 0:06:44.2]} 21.
Qb1 {[%clk 0:07:51.1]} 21... a5 {[%clk 0:06:32.4]} 22. b3 {[%clk 0:07:49.4]}
22... h5 {[%clk 0:05:49.1]} 23. f4 {[%clk 0:07:04]} 23... Nf8 {[%clk 0:04:50.6]}
24. f5 {[%clk 0:06:38.4]} 24... Rd6 {[%clk 0:04:48.9]} 25. Rf1 {[%clk
0:06:32.1]} 25... Bxe5 {[%clk 0:04:28.2]} 26. dxe5 {[%clk 0:06:28.6]} 26... Qxe5
{[%clk 0:04:30.1]} 27. Rde1 {[%clk 0:06:27.1]} 27... Qd5 {[%clk 0:04:14.6]} 28.
Bg5 {[%clk 0:05:52.6]} 28... Rd7 {[%clk 0:03:50.9]} 29. Qe4 {[%clk 0:04:53.8]}
29... Qxe4 {[%clk 0:03:44]} 30. Rxe4 {[%clk 0:04:53.6]} 30... e6 {[%clk
0:03:45.6]} 31. f6 {[%clk 0:04:22.5]} 31... Rd5 {[%clk 0:03:37.6]} 32. Be3
{[%clk 0:04:14.3]} 32... Rc3 {[%clk 0:03:16.3]} 33. g4 {[%clk 0:03:25.9]} 33...
Nd7 {[%clk 0:03:09]} 34. Rf2 {[%clk 0:02:51.1]} 34... hxg4 {[%clk 0:02:14.6]}
35. hxg4 {[%clk 0:02:50.8]} 35... Re5 {[%clk 0:02:14.6]} 36. Rxe5 {[%clk
0:02:12.3]} 36... Nxe5 {[%clk 0:02:16.5]} 37. Bd2 {[%clk 0:02:13.3]} 37... Rg3+
{[%clk 0:02:13]} 38. Kf1 {[%clk 0:02:06.4]} 38... Nxg4 {[%clk 0:02:08.7]} 39.
Rf4 {[%clk 0:01:58.2]} 39... e5 {[%clk 0:02:00.3]} 40. Ra4 {[%clk 0:01:47.3]}
40... Nxf6 {[%clk 0:01:59.5]} 41. Rxa5 {[%clk 0:01:47.2]} 41... e4 {[%clk
0:01:56.8]} 42. Rb5 {[%clk 0:01:27.8]} 42... Ng4 {[%clk 0:01:51.1]} 43. a4
{[%clk 0:01:20.1]} 43... Nh2+ {[%clk 0:01:06.4]} 44. Kf2 {[%clk 0:01:14.1]}
44... Rd3 {[%clk 0:01:06.1]} 45. Ke2 {[%clk 0:01:11.7]} 45... Nf3 {[%clk
0:01:05.5]} 46. Be3 {[%clk 0:01:10.3]} 46... Rc3 {[%clk 0:00:41.4]} 47. a5
{[%clk 0:00:41.5]} 47... Rc2+ {[%clk 0:00:42.2]} 48. Kd1 {[%clk 0:00:41.9]}
48... Ra2 {[%clk 0:00:43.7]} 49. b4 {[%clk 0:00:39.2]} 49... f5 {[%clk
0:00:44.7]} 50. Rb6 {[%clk 0:00:15.5]} 50... Ne5 {[%clk 0:00:45.8]} 51. Bd4
{[%clk 0:00:11.5]} 51... Nf3 {[%clk 0:00:27.9]} 52. Be3 {[%clk 0:00:12.5]} 52...
Ne5 {[%clk 0:00:22.4]} 53. Bd4 {[%clk 0:00:13.7]} 53... Nf3 {[%clk 0:00:23.6]}
54. Be3 {[%clk 0:00:14.7]} 1/2-1/2

[Event "GrandPrix_29.05"]
[Site "Chess.com"]
[Date "2020.05.29"]
[Round "3"]
[White "IMTominho"]
[Black "BlackBoarder"]
[Result "1-0"]
[WhiteElo "2039"]
[BlackElo "2138"]
[TimeControl "600+2"]
[EndTime "10:28:10 PDT"]
[Termination "IMTominho won by resignation"]

1. d4 {[%clk 0:10:01.9]} 1... e6 {[%clk 0:09:58.7]} 2. c4 {[%clk 0:09:48.9]}
2... Nf6 {[%clk 0:09:58.8]} 3. Nf3 {[%clk 0:09:47.2]} 3... d5 {[%clk 0:09:57.9]}
4. Bg5 {[%clk 0:09:43.1]} 4... h6 {[%clk 0:09:52.9]} 5. Bh4 {[%clk 0:09:40]}
5... Be7 {[%clk 0:09:41.6]} 6. e3 {[%clk 0:09:27.2]} 6... O-O {[%clk 0:09:28.2]}
7. Bd3 {[%clk 0:09:24.5]} 7... dxc4 {[%clk 0:09:13.3]} 8. Bxc4 {[%clk
0:09:24.8]} 8... c5 {[%clk 0:09:14]} 9. O-O {[%clk 0:09:20.5]} 9... Nc6 {[%clk
0:09:11.2]} 10. Nc3 {[%clk 0:09:16.7]} 10... b6 {[%clk 0:08:48.1]} 11. Rc1
{[%clk 0:08:35.4]} 11... Bb7 {[%clk 0:08:17.8]} 12. Bxf6 {[%clk 0:08:31.7]}
12... Bxf6 {[%clk 0:08:04.4]} 13. dxc5 {[%clk 0:08:30.9]} 13... bxc5 {[%clk
0:08:04.9]} 14. Qe2 {[%clk 0:08:26.4]} 14... Qa5 {[%clk 0:07:48]} 15. Bd3 {[%clk
0:07:54.4]} 15... Nb4 {[%clk 0:07:32.7]} 16. Bc4 {[%clk 0:07:10.6]} 16... Rfd8
{[%clk 0:07:08.3]} 17. Nd2 {[%clk 0:07:00.6]} 17... Bxc3 {[%clk 0:05:33.3]} 18.
Nb3 {[%clk 0:05:12.6]} 18... Qc7 {[%clk 0:03:42.5]} 19. bxc3 {[%clk 0:04:59.7]}
19... Nd5 {[%clk 0:03:20.2]} 20. e4 {[%clk 0:04:54.5]} 20... Nf6 {[%clk
0:02:50.4]} 21. f3 {[%clk 0:04:51.5]} 21... a5 {[%clk 0:02:29.8]} 22. Qe3 {[%clk
0:04:36.7]} 22... Nd7 {[%clk 0:02:20]} 23. Bb5 {[%clk 0:04:28.8]} 23... a4
{[%clk 0:02:17.6]} 24. Nd2 {[%clk 0:04:28.3]} 24... Ne5 {[%clk 0:02:10.9]} 25.
Rfd1 {[%clk 0:04:21.7]} 25... Ba6 {[%clk 0:02:00.5]} 26. Bxa6 {[%clk 0:03:58.3]}
26... Rxa6 {[%clk 0:02:01]} 27. Qe2 {[%clk 0:03:59.1]} 27... Rad6 {[%clk
0:02:00.4]} 28. Nf1 {[%clk 0:03:58.4]} 28... Nd3 {[%clk 0:01:58.5]} 29. Rb1
{[%clk 0:03:56.6]} 29... c4 {[%clk 0:01:57.1]} 30. Qe3 {[%clk 0:03:54.9]} 30...
Qa5 {[%clk 0:01:51.3]} 31. Qd2 {[%clk 0:03:47.2]} 31... Qc5+ {[%clk 0:01:50.3]}
32. Qe3 {[%clk 0:03:47.2]} 32... Qa3 {[%clk 0:01:44.9]} 33. Rb7 {[%clk
0:03:24.7]} 33... Qxc3 {[%clk 0:01:42.3]} 34. Rc7 {[%clk 0:03:23.4]} 34... Qc2
{[%clk 0:01:35.9]} 35. Qd2 {[%clk 0:03:10.4]} 35... Qxd2 {[%clk 0:01:20]} 36.
Rxd2 {[%clk 0:03:12.3]} 36... Ne5 {[%clk 0:01:00.7]} 37. Rxd6 {[%clk 0:03:10.6]}
37... Rxd6 {[%clk 0:01:02.6]} 38. Ne3 {[%clk 0:03:12.4]} 38... Rd2 {[%clk
0:00:42.5]} 39. a3 {[%clk 0:03:01.2]} 39... Ra2 {[%clk 0:00:12.8]} 40. Nxc4
{[%clk 0:02:56.3]} 40... Nxc4 {[%clk 0:00:14]} 41. Rxc4 {[%clk 0:02:58.1]} 41...
Rxa3 {[%clk 0:00:15.5]} 42. h4 {[%clk 0:02:54.3]} 42... Ra2 {[%clk 0:00:15.6]}
43. h5 {[%clk 0:02:52.1]} 43... Kf8 {[%clk 0:00:14.3]} 44. Rc7 {[%clk
0:02:48.5]} 44... a3 {[%clk 0:00:14.6]} 45. Ra7 {[%clk 0:02:49.1]} 45... Ra1+
{[%clk 0:00:12.9]} 46. Kh2 {[%clk 0:02:49.9]} 46... a2 {[%clk 0:00:13.9]} 47.
Kg3 {[%clk 0:02:47.6]} 47... Ke8 {[%clk 0:00:14.4]} 48. Kf4 {[%clk 0:02:46.6]}
48... Kd8 {[%clk 0:00:15.4]} 49. Ra8+ {[%clk 0:02:44.6]} 49... Kc7 {[%clk
0:00:15.2]} 50. Ra7+ {[%clk 0:02:46.5]} 50... Kb6 {[%clk 0:00:16.3]} 51. Ra8
{[%clk 0:02:47.5]} 51... Kc5 {[%clk 0:00:15.8]} 52. Rc8+ {[%clk 0:02:46.2]}
52... Kd4 {[%clk 0:00:15.3]} 53. Ra8 {[%clk 0:02:45.2]} 53... Kd3 {[%clk
0:00:12.7]} 54. Kg3 {[%clk 0:02:44.4]} 54... Ke3 {[%clk 0:00:12.1]} 55. Ra3+
{[%clk 0:02:44]} 55... Ke2 {[%clk 0:00:12.8]} 56. Ra8 {[%clk 0:02:45.9]} 56...
Kf1 {[%clk 0:00:10.7]} 57. Ra7 {[%clk 0:02:46.2]} 57... Ke1 {[%clk 0:00:11.5]}
58. Ra8 {[%clk 0:02:46.8]} 58... Kd1 {[%clk 0:00:12.8]} 59. Ra7 {[%clk 0:02:48]}
59... Kc2 {[%clk 0:00:13.8]} 60. Ra8 {[%clk 0:02:47.2]} 60... Kb3 {[%clk
0:00:14.2]} 61. Rb8+ {[%clk 0:02:48.1]} 61... Kc4 {[%clk 0:00:15.5]} 62. Rc8+
{[%clk 0:02:49]} 62... Kd4 {[%clk 0:00:16.9]} 63. Rd8+ {[%clk 0:02:48.9]} 63...
Ke5 {[%clk 0:00:18.1]} 64. Ra8 {[%clk 0:02:47.4]} 64... f5 {[%clk 0:00:18.4]}
65. Ra5+ {[%clk 0:02:44.1]} 65... Kf6 {[%clk 0:00:17.9]} 66. exf5 {[%clk
0:02:41.4]} 66... exf5 {[%clk 0:00:18.7]} 67. Kf4 {[%clk 0:02:42.5]} 67... Ke6
{[%clk 0:00:14.6]} 68. Ra6+ {[%clk 0:02:41.9]} 68... Kd5 {[%clk 0:00:15.4]} 69.
Kxf5 {[%clk 0:02:43.1]} 69... Kc4 {[%clk 0:00:12.6]} 70. Kg6 {[%clk 0:02:39.5]}
70... Kb3 {[%clk 0:00:13.8]} 71. Kxg7 {[%clk 0:02:35.8]} 71... Rg1 {[%clk
0:00:08.5]} 72. g4 {[%clk 0:02:36.7]} 72... Rf1 {[%clk 0:00:07.8]} 73. Kxh6
{[%clk 0:02:31.2]} 73... Rxf3 {[%clk 0:00:08.4]} 74. g5 {[%clk 0:02:32]} 74...
Kb2 {[%clk 0:00:06.3]} 75. Rxa2+ {[%clk 0:02:31.7]} 75... Kxa2 {[%clk
0:00:07.3]} 76. g6 {[%clk 0:02:22]} 76... Rb3 {[%clk 0:00:07.6]} 77. g7 {[%clk
0:02:20]} 77... Rb8 {[%clk 0:00:03.4]} 78. Kh7 {[%clk 0:02:21]} 78... Rb7 {[%clk
0:00:04.2]} 79. Kh8 {[%clk 0:02:19.8]} 1-0

[Event "GrandPrix_29.05"]
[Site "Chess.com"]
[Date "2020.05.29"]
[Round "3"]
[White "mishikomchedlishvili"]
[Black "Evgeny81"]
[Result "1-0"]
[WhiteElo "2071"]
[BlackElo "2435"]
[TimeControl "600+2"]
[EndTime "10:28:11 PDT"]
[Termination "mishikomchedlishvili won by resignation"]

1. d4 {[%clk 0:10:01.9]} 1... d5 {[%clk 0:09:58.8]} 2. Nf3 {[%clk 0:10:02.3]}
2... Nf6 {[%clk 0:09:58.6]} 3. g3 {[%clk 0:10:02]} 3... e6 {[%clk 0:09:39.9]} 4.
Bg2 {[%clk 0:10:00.8]} 4... b5 {[%clk 0:09:39.6]} 5. O-O {[%clk 0:09:52.6]} 5...
Bb7 {[%clk 0:09:37.5]} 6. a4 {[%clk 0:09:42.5]} 6... b4 {[%clk 0:09:37.2]} 7. c4
{[%clk 0:09:33]} 7... dxc4 {[%clk 0:08:20.8]} 8. Qc2 {[%clk 0:09:14.3]} 8...
Nbd7 {[%clk 0:07:46.5]} 9. Nbd2 {[%clk 0:08:17.4]} 9... c5 {[%clk 0:07:27.6]}
10. Nxc4 {[%clk 0:07:40.6]} 10... Rc8 {[%clk 0:07:07.4]} 11. Be3 {[%clk
0:07:00]} 11... cxd4 {[%clk 0:05:07.4]} 12. Bxd4 {[%clk 0:06:59.6]} 12... Bd5
{[%clk 0:04:07]} 13. Nfd2 {[%clk 0:05:57.2]} 13... Bc5 {[%clk 0:03:52.9]} 14.
Bxc5 {[%clk 0:04:57.2]} 14... Rxc5 {[%clk 0:03:43.8]} 15. Qb3 {[%clk 0:04:46.5]}
15... Bxg2 {[%clk 0:03:23.3]} 16. Kxg2 {[%clk 0:04:46]} 16... Qb8 {[%clk
0:03:13.3]} 17. Rfd1 {[%clk 0:04:29.4]} 17... O-O {[%clk 0:03:10.2]} 18. Nf3
{[%clk 0:04:28.6]} 18... Rd5 {[%clk 0:02:55.5]} 19. Qe3 {[%clk 0:02:33.3]} 19...
Rc8 {[%clk 0:02:38.3]} 20. b3 {[%clk 0:02:27.8]} 20... Nc5 {[%clk 0:02:26.9]}
21. Nfe5 {[%clk 0:02:20.2]} 21... h6 {[%clk 0:01:51.4]} 22. Rac1 {[%clk
0:02:07.4]} 22... Rxd1 {[%clk 0:01:26.1]} 23. Rxd1 {[%clk 0:02:08]} 23... Qa8+
{[%clk 0:01:27.2]} 24. Kg1 {[%clk 0:01:56.1]} 24... Qe4 {[%clk 0:01:26.6]} 25.
Nd6 {[%clk 0:01:05.5]} 25... Qxe3 {[%clk 0:01:21.7]} 26. fxe3 {[%clk 0:01:06.5]}
26... Rf8 {[%clk 0:00:39.6]} 27. Rc1 {[%clk 0:00:40.4]} 27... Nxb3 {[%clk
0:00:35.8]} 28. Rc7 {[%clk 0:00:41.2]} 28... Nd5 {[%clk 0:00:27]} 29. Rxa7
{[%clk 0:00:41.1]} 29... Nc5 {[%clk 0:00:23.7]} 30. Ra5 {[%clk 0:00:35.5]} 30...
Nb3 {[%clk 0:00:08.2]} 31. Rb5 {[%clk 0:00:30.5]} 31... Ra8 {[%clk 0:00:07.4]}
32. e4 {[%clk 0:00:23.3]} 32... Nd4 {[%clk 0:00:04.4]} 33. Rb7 {[%clk
0:00:21.8]} 33... Nxe2+ {[%clk 0:00:03.8]} 34. Kf2 {[%clk 0:00:20.8]} 34... Ndc3
{[%clk 0:00:05.1]} 35. Rxb4 {[%clk 0:00:20]} 35... Rxa4 {[%clk 0:00:05]} 36.
Rxa4 {[%clk 0:00:19.9]} 36... Nxa4 {[%clk 0:00:05.2]} 37. Kxe2 {[%clk
0:00:21.1]} 37... f6 {[%clk 0:00:02.9]} 38. Nd3 {[%clk 0:00:21.2]} 38... Nc3+
{[%clk 0:00:02.6]} 39. Ke3 {[%clk 0:00:22]} 39... Kf8 {[%clk 0:00:03.4]} 40. e5
{[%clk 0:00:21.3]} 40... Ke7 {[%clk 0:00:04.2]} 41. Ne4 {[%clk 0:00:21.6]} 41...
Nd5+ {[%clk 0:00:05]} 42. Kd4 {[%clk 0:00:22.7]} 42... fxe5+ {[%clk 0:00:05.4]}
43. Kxe5 {[%clk 0:00:21.5]} 43... Ne3 {[%clk 0:00:06.5]} 44. Kf4 {[%clk
0:00:19.4]} 44... Nd5+ {[%clk 0:00:07.4]} 45. Kf3 {[%clk 0:00:20.1]} 45... Kf7
{[%clk 0:00:07.4]} 46. Ne5+ {[%clk 0:00:20.2]} 46... Ke7 {[%clk 0:00:08.7]} 47.
h4 {[%clk 0:00:21.1]} 47... Nc7 {[%clk 0:00:08.3]} 48. h5 {[%clk 0:00:21.7]}
48... Nd5 {[%clk 0:00:09.4]} 49. g4 {[%clk 0:00:22.4]} 49... Nb6 {[%clk
0:00:08.5]} 50. Ke3 {[%clk 0:00:20]} 50... Nd5+ {[%clk 0:00:09.1]} 51. Kd4
{[%clk 0:00:21.2]} 51... Nf4 {[%clk 0:00:09.9]} 52. Ng6+ {[%clk 0:00:20.4]} 1-0